Cogmind - Beta 10.2 @@@ ROGUE MODE // 2021.10.11 @ 16:25:51 Player: zapruda Result: Destroyed by S-10 Pest with Light Assault Rifle Performance ------------- Evolutions (0) 0 Regions Visited (1) 200 Robots Destroyed (13) 65 Value Destroyed (302) 302 Prototype IDs (0) 0 Alien Tech Used (0) 0 Bonus (0) 0 TOTAL SCORE: 567 Bonus ------- None Cogmind --------- Core Integrity 0/250 Matter 251/300 Energy 124/125 System Corruption 0% Temperature Cool (0) Movement Rolling (100) Ox2 Location -10/Materials Parts ------- > --- POWER (1) -------- Light Ion Engine > --- PROPULSION (2) --- Light Treads Wheel > --- UTILITY (2) ------ Heat Sink Large Storage Unit > --- WEAPON (2) ------- Light Assault Rifle Light Assault Rifle > --- INVENTORY (10) --- Light Treads Aluminum Leg Aluminum Leg Aluminum Leg Wheel Medium Matter Pod (67) Particle Gun Light Assault Rifle Peak State ------------ > --- POWER ------------ Ion Engine > --- PROPULSION ------- Light Treads Aluminum Leg > --- UTILITY ---------- Large Storage Unit Structural Scanner > --- WEAPON ----------- Medium Laser Light Assault Rifle > --- INVENTORY -------- Light Ion Engine Light Treads Aluminum Leg Aluminum Leg Aluminum Leg Wheel Wheel Small Laser Small Laser Light Assault Rifle [Rating: 8] Favorites ----------- Power Ion Engine Engine Ion Engine Propulsion Aluminum Leg Treads Light Treads Leg Aluminum Leg Wheel Wheel Utility Large Storage Unit Device Structural Scanner Storage Large Storage Unit Weapon Light Assault Rifle Energy Gun Medium Laser Ballistic Gun Light Assault Rifle Build | -11 -10 ------- Run | Scr Mat Slots Evolved . | . . Power . | . . Propulsion . | . . Utility . | . . Weapon . | . . Parts Attached 18 | . 18 Power 3 | . 3 Engine 3 | . 3 Core . | . . Reactor . | . . Propulsion 3 | . 3 Treads 2 | . 2 Leg . | . . Wheel 1 | . 1 Hover . | . . Flight . | . . Utility 4 | . 4 Device 2 | . 2 Storage 2 | . 2 Processor . | . . Hackware . | . . Protection . | . . Artifact . | . . Weapon 8 | . 8 Energy Gun 4 | . 4 Energy Cannon . | . . Ballistic Gun 4 | . 4 Ballistic Cannon . | . . Launcher . | . . Special Weapon . | . . Impact Weapon . | . . Slashing Weapon . | . . Piercing Weapon . | . . Special Melee Weapon . | . . Unidentified Prototypes . | . . Parts Lost 8 | . 8 Power 1 | . 1 Propulsion 1 | . 1 Utility 1 | . 1 Weapon 5 | . 5 Highest Loss Streak 5 | . 5 Average Slot Usage (%) 96 | . 96 Engine 13 | . 13 Treads 11 | . 11 Leg 13 | . 13 Wheel 2 | . 2 Device 10 | . 10 Storage 15 | . 15 Energy Gun 8 | . 8 Ballistic Gun 18 | . 18 Naked Turns . | . . Heaviest Build 25 | 10 25 Greatest Support 20 | 20 20 Greatest Overweight (x) 2 | . 2 Average Overweight (x) 1 | . 1 Largest Inventory Capacity 10 | . 10 Average Capacity 9 | . 9 Most Carried 10 | . 10 Average Carried 8 | . 8 Final Capacity 10 | 6 10 Final Carried 8 | 6 8 Class Distribution -------------------- 100% | Mutant Dominant Class ---------------- Mutant | -10/Materials Resources | -11 -10 ----------- Run | Scr Mat Matter Collected 427 | 194 233 Remotely . | . . Salvage Created 363 | . 363 Parts 27 | . 27 Haulers Intercepted . | . . Recyclers Shooed 1 | . 1 Parts Field Recycled . | . . Retrieved Matter . | . . Parts Self-Destructed . | . . Prevented . | . . Kills | -11 -10 ------- Run | Scr Mat Combat Hostiles Destroyed 12 | . 12 Guns 12 | . 12 Classes Destroyed 3 | . 3 Worker 1 | . 1 Swarmer 5 | . 5 Grunt 7 | . 7 Best Kill Streak 4 | . 4 Combat Bots Only 3 | . 3 Max Kills in Single Turn 2 | . 2 Gunslinging 1 | . 1 Exploded . | . . Melee . | . . Uniques/NPCs Destroyed . | . . Combat | -11 -10 -------- Run | Scr Mat Damage Taken 908 | . 908 Core 254 | . 254 Absorbed by Shields . | . . Core Remaining (%) 100 | 100 . Volleys Fired 78 | . 78 Largest 2 | . 2 Hottest 80 | . 80 Shots Fired 147 | . 147 Gun 147 | . 147 Cannon . | . . Launcher . | . . Special . | . . Kinetic 111 | . 111 Thermal 36 | . 36 Explosive . | . . Electromagnetic . | . . Robot Hit Streak 14 | . 14 Robot Miss Streak 7 | . 7 Penetration Max . | . . Secondary Targets 1 | . 1 Max Gunslinging Chain 1 | . 1 Shots Hit Robots 93 | . 93 Core Hits 28 | . 28 Critical Hits 1 | . 1 Critical Kills . | . . Critical Parts Destroyed 1 | . 1 Melee Attacks . | . . Impact . | . . Slashing . | . . Piercing . | . . Sneak Attacks . | . . Combat Hostiles . | . . Follow-up Attacks . | . . Damage Inflicted 827 | . 827 Guns 827 | . 827 Cannons . | . . Explosions . | . . Melee . | . . Ramming . | . . Kinetic 533 | . 533 Thermal 294 | . 294 Explosive . | . . Electromagnetic . | . . Impact . | . . Slashing . | . . Piercing . | . . Highest Corruption . | . . Average Corruption . | . . Corruption Purged . | . . Overload Shots . | . . Overflow Damage . | . . Projectiles . | . . Explosions . | . . Melee . | . . Knockbacks . | . . Impact . | . . Kinetic . | . . Secondary . | . . Self-Inflicted Damage . | . . Shots . | . . Rammed . | . . Targets Rammed . | . . Kicked . | . . Crushed . | . . Highest Temperature 242 | . 242 Average Temperature 64 | . 64 Received Heat Transfer 291 | . 291 Siege Activations . | . . Robots Corrupted . | . . Combat Hostiles . | . . Parts Fried . | . . Impact Corruptions . | . . Robots Melted . | . . Combat Hostiles . | . . Parts Melted 2 | . 2 Heat Transferred 828 | . 828 Parts Sabotaged . | . . Parts Stolen . | . . Parts Stripped . | . . Power Chain Reactions . | . . Missiles Intercepted . | . . Alert | -11 -10 ------- Run | Scr Mat Peak Influence 170 | . 170 Initial . | . . Average 71 | . 71 Maximum Alert Level . | . . Low Security (%) 100 | . 100 Level 1 . | . . Level 2 . | . . Level 3 . | . . Level 4 . | . . Level 5 . | . . High Security . | . . Max Security . | . . Squads Dispatched 3 | . 3 Investigation 1 | . 1 Extermination . | . . Reinforcement 2 | . 2 Assault . | . . Garrison . | . . Intercept . | . . Construction Impeded . | . . Haulers Reinforced . | . . Stealth | -11 -10 --------- Run | Scr Mat Distress Signals . | . . Communications Jammed . | . . Distress Signals . | . . Times Spotted 25 | . 25 Peak Tracking Total 5 | . 5 Tactical Retreats 2 | . 2 Traps | -11 -10 ------- Run | Scr Mat Traps Triggered 3 | . 3 Indirectly . | . . Trap Hack Attempts . | . . Triggered . | . . Disarmed . | . . Reprogrammed . | . . Reused . | . . Traps Extracted . | . . Installed . | . . Triggered . | . . Machines | -11 -10 ---------- Run | Scr Mat Machines Disabled . | . . Max in Single Turn . | . . Machines Sabotaged . | . . Garrisons Compromised . | . . Overloaded Fab Kills . | . . Fab Network Shutdowns . | . . Hacking | -11 -10 --------- Run | Scr Mat Machines Accessed 1 | . 1 Terminals 1 | . 1 Fabricators . | . . Repair Stations . | . . Recycling Units . | . . Scanalyzers . | . . Garrison Access . | . . Total Hacks 3 | . 3 Successful . | . . Failed 3 | . 3 Catastrophic . | . . Database Lockouts . | . . Manual . | . . Terminals 3 | . 3 Fabricators . | . . Repair Stations . | . . Recycling Units . | . . Scanalyzers . | . . Garrison Access . | . . Terminal Hacks . | . . Fabricator Hacks . | . . Repair Station Hacks . | . . Recycling Unit Hacks . | . . Scanalyzer . | . . Garrison Access Hacks . | . . Unauthorized Hacks . | . . Terminals . | . . Fabricators . | . . Repair Stations . | . . Recycling Units . | . . Scanalyzers . | . . Garrison Access . | . . Data Cores Recovered . | . . Used . | . . Hacking Detections 1 | . 1 Full Trace Events 1 | . 1 Feedback Events . | . . Feedback Blocked . | . . Robot Schematics Acquired . | . . Robots Built . | . . Matter . | . . Time . | . . Total Robot Build Rating . | . . Part Schematics Acquired . | . . Parts Built . | . . Matter . | . . Time . | . . Total Part Build Rating . | . . Parts Repaired . | . . Time . | . . Parts Recycled . | . . Recycled Matter . | . . Retrieved Matter . | . . Retrieved Components . | . . Parts Scanalyzed . | . . Part Schematics Acquired . | . . Parts Damaged . | . . Bothacking | -11 -10 ------------ Run | Scr Mat Used RIF Installer . | . . Robots Hacked . | . . Non-combat . | . . Combat . | . . Robot Hacks Applied . | . . Relay Couplers Released . | . . Robots Rewired . | . . Allies Hacked . | . . Hacks Repelled . | . . Allies | -11 -10 -------- Run | Scr Mat Total Allies . | . . Largest Group . | . . Highest-Rated Group . | . . Highest-Rated Ally . | . . Total Orders . | . . Ally Attacks . | . . Total Damage . | . . Kills . | . . Allies Corrupted . | . . Allies Melted . | . . Intel | -11 -10 ------- Run | Scr Mat Robot Analysis Total . | . . Derelict Logs Recovered . | . . Drone Launches . | . . Drone Recoveries . | . . Exploration | -11 -10 ------------- Run | Scr Mat Turns Passed 589 | . 589 Spaces Moved 233 | 1 232 Core . | . . Treads 118 | . 118 Legs 73 | 1 72 Wheels 42 | . 42 Hover . | . . Flight . | . . Fastest Speed 100 | 120 100 Average Speed 151 | 120 151 Slowest Speed 180 | 120 180 Overloaded Moves . | . . Propulsion Burnouts . | . . Robots Hopped . | . . Cave-ins Triggered . | . . Exploration Rate (%) 26 | 2 50 Regions Visited 1 Branch Regions . Pre-discovered Areas . | . . Known Exits Taken . | . . Unknown Exits Taken 1 | 1 . Scrap Searched . | . . Spaces Dug . | . . Terrain Destroyed . | . . Melee . | . . Projectile . | . . AOE . | . . Terrain Rammed . | . . Walls Destroyed . | . . Machines Disabled . | . . Actions | -11 -10 --------- Run | Scr Mat Total 343 | . 343 Wait . | . . Move 232 | . 232 Hop . | . . Pick Up 13 | . 13 Fast Attach 2 | . 2 Attach 11 | . 11 Detach . | . . Swap 5 | . 5 Drop 2 | . 2 Fire 78 | . 78 Melee . | . . Ram . | . . Kick . | . . Crush . | . . Escape Stasis . | . . Rewire . | . . Trap . | . . Miscellaneous . | . . Route ------- -11/Scrapyard -10/Materials (discovered 3 exits: [*Mat] / [*Min x2]) History --------- Turn | Location | Event 1 | -11/Scrapyard | Discovered new exit (range 0) 1 | -11/Scrapyard | Entered Materials 103 | -10/Materials | Discovered new exit (range 10) 243 | -10/Materials | Discovered new exit (range 15) 301 | -10/Materials | Build established: Mutant 409 | -10/Materials | Lost 5 parts (1u4w) 425 | -10/Materials | Core integrity fell below 50% 458 | -10/Materials | Discovered new exit (range 16) 573 | -10/Materials | Core integrity fell below 20% 590 | -10/Materials | Destroyed by S-10 Pest with Light Assault Rifle Last Messages --------------- 00490_ Aluminum Leg destroyed. 00493_ K-01 Serf collects debris. 00501_ S-10 Pest destroyed. 00501_ K-01 Serf collects debris. 00506_ S-10 Pest destroyed. 00506_ K-01 Serf collects debris. 00507_ Acquired 16 matter. 00515_ K-01 Serf collects debris. 00520_ K-01 Serf cleans the Terminal. 00521_ K-01 Serf collects debris. 00526_ R-06 Scavenger collects Sml. Laser. 00537_ O-16 Technician: "IFF HANDSHAKE FAILED. SECURING TERMINAL." 00539_ O-16 Technician uses terminal to summon reinforcements. 00539_ ALERT: Hostiles spotted, dispatching reinforcements to Terminal M006. 00539_ O-16 Technician locks terminal. 00552_ K-01 Serf cleans the Terminal. 00572_ Triggered Explosive Trap. 00572_ An explosion rips through the floor. 00588_ U-05 Engineer lays Concrete. Map ----- +----------------------------------------------------+ | ##### #??????????????# =*+% #??????? | | ????# #??????????????# *#########???????? | | ????# #??????????????# ## ####????????????? | | ????# #??????????????# # "#????????????? | | ????# #??????????????# # ""#????????????? | | ????# #??????????????# # ||#????????????? | | ????# #??????????????# # < ""#????????????? | | ????# #??????????????# # !!#????????????? | | ?#### #?????????????## # ""#????????????? | | ##!! #?????????##### # "#????????????? | | #! #???????? ## ####????????????? | | #! #???????? #???????????????? | | #! #???????? #???????????????? | | #! #?????????## "" #???????????????? | | ##!! #??????????# """ T" ##???????????? # | | ##### #########??# """ "" ########## # | | # # !!! #??# """ # | | # # !!! #??# """ # | | "" + + !! #??# # | | "" # #####+###??# ##+####### # | | "" # #???###???## s######## #??????? | | # #?????????# ##### """ #??????? | | ##### #?????????+ + """ #??????? | | ????# #?????????# ##### """ #??????? | | ????# #?????????#######/#####???# ! #??????? | | ????# #????????????# @ #???# #??????? | | ????# #????????????# #???# #??????? | | ????# #????????????# #???# #??????? | | ????# #????????????# """ #???# " " #??????? | | ????#####????????????# """"" #???# "T" #??????? | | ?????????????????????# """"" #???# """ #??????? | | ?????????????????????# """"" #???#########??????? | | ?????????????????????# """??#??????????????????? | | ?????????????????????# ????????????????????????? | | ?????????????????????###?????????????????????????? | | ?????????????????????????????????????????????????? | | ?????????????????????????????????????????????????? | | ?????????????????????????????????????????????????? | | ?????????????????????????????????????????????????? | | ?????????????????????????????????????????????????? | | ?????????????????????????????????????????????????? | | ?????????????????????????????????????????????????? | | ?????????????????????????????????????????????????? | | ?????????????????????????????????????????????????? | | | | | | | | | | | | | +----------------------------------------------------+ Best States ------------- Heat Dissipation 35 Energy Generation 10 Energy Capacity 250 Matter Stores 367 Matter Capacity 400 Sight Range 16 Terrain Scan Density 10 Evasion (%) 40 Recoil Reduction 1 Item Schematics ----------------- None Robot Schematics ------------------ None Fabricated ------------ Nothing Alien Tech Used ----------------- None Achievements -------------- None Challenges ------------ None Game ------ Seed CombatMinesnifferMachine Manual? 0 Play Time 00:08:01 Cumulative 55.1 hours Start 2021.10.11 @ 16:21:40 End 2021.10.11 @ 16:25:51 Sessions 1 Manual Loads 0 Difficulty Rogue Special Mode None Game No. 88 Rogue 88 Adventurer 0 Explorer 0 Win Type - Total 0 Types 0/0/0/0/0/0/0/0/0 Lore% 29 Gallery% 47 Achievement% 30 Wizard Run 0 Options --------- ASCII 0 Keyboard 0 Movement Mouse Keybinds 0 Fullscreen 1 Font 16/SmallcapsGlow Map View 76x50 Tactical HUD 1 Map Filters NONE Filters NONE Steam 1 RUN: 4cd21fb0-f997-47d9-a855-fb1927aed57c